fUST/lending_fUST_20240917
["ID","MTS","AMOUNT","RATE_DAILY","PERIOD"]
[338351442,1726543843595,-151.0,0.0001929,2]
[338351443,1726543843605,-151.0,0.0001929,2]
[338351444,1726543843615,-285.314537,0.0001929,2]
[338351445,1726543843624,-151.0,0.0001929,2]
[338351446,1726543843634,-151.0,0.0001929,2]
[338351447,1726543843643,-2496.6554972,0.0001929,3]
[338351448,1726543843653,-151.0,0.0001929,2]
[338351449,1726543843663,-151.0,0.0001929,2]
[338351450,1726543843673,-332.852387,0.0001929,2]
[338351451,1726543843682,-332.852387,0.0001929,2]
[338351452,1726543843692,-332.852387,0.0001929,2]
[338351453,1726543843701,-332.852387,0.0001929,2]
[338351454,1726543843712,-173.647869,0.0001929,2]
[338351455,1726543843722,-173.647869,0.0001929,2]
[338351456,1726543843732,-291.050099,0.0001929,2]
[338351457,1726543843742,-173.647869,0.0001929,2]
[338351459,1726543843751,-173.647869,0.0001929,2]
[338351460,1726543843761,-532.841942,0.0001929,2]
[338351461,1726543843770,-532.841942,0.0001929,2]
[338351462,1726543843780,-532.841942,0.0001929,2]
[338351463,1726543843789,-532.841942,0.0001929,2]
[338351464,1726543843799,-819.44016,0.0001929,2]
[338351465,1726543843810,-819.44016,0.0001929,2]
[338351466,1726543843819,-819.44016,0.0001929,2]
[338351467,1726543843829,-819.44016,0.0001929,2]
[338351468,1726543843839,-151.0,0.0001929,2]
[338351469,1726543843849,-151.0,0.0001929,2]
[338351470,1726543843858,-151.0,0.0001929,2]
[338351471,1726543843868,-151.0,0.0001929,2]
[338351472,1726543843878,-151.0,0.0001929,2]
[338351473,1726543843888,-151.0,0.0001929,2]
[338351474,1726543843898,-151.0,0.0001929,2]
[338351475,1726543843907,-1578.423904,0.0001929,2]
[338351476,1726543843917,-1578.423904,0.0001929,2]
[338351477,1726543843926,-1578.423904,0.0001929,2]
[338351478,1726543843936,-1578.423904,0.0001929,2]
[338351479,1726543843945,-151.0,0.0001929,2]
[338351480,1726543843955,-923.422634,0.0001929,2]
[338351481,1726543843965,-923.422634,0.0001929,2]
[338351482,1726543843974,-314.4,0.00019294,2]
[338351483,1726543843983,-160.0,0.00019299,2]
[338351484,1726543843992,-4300.89561842,0.000193,5]
[338351485,1726543844673,-500.0,0.00018408,2]
[338351486,1726543844683,-500.0,0.00018408,2]
[338351487,1726543844693,-350.57917763,0.00018408,2]
[338351488,1726543844702,-7147.58567285,0.000193,5]
[338351499,1726544369571,2000.83557045,0.00025,60]
[338351501,1726544450304,2220.79,0.00025,60]
[338351502,1726544456936,1000.0,0.00025,60]
[338351503,1726544481636,253.710953,0.00013699,2]
[338351505,1726544517582,168.0,0.00025,60]
[338351522,1726544788551,1429.26,0.00026,120]
[338351524,1726544845129,-162.846435,0.00016585,2]
[338351525,1726544845152,-300.0,0.00016685,2]
[338351526,1726544845176,-300.0,0.00016685,2]
[338351527,1726544845199,-162.3744879,0.00016686,2]
[338351528,1726544854120,-1798.52010788,0.00016686,2]
[338351531,1726544905472,250.22,0.0001401,2]
[338351546,1726544957101,-294.0,0.00016123,2]
[338351547,1726544962535,-454.12464747,0.00016123,2]
[338351548,1726544966131,-768.94088553,0.00016123,2]
[338351549,1726544966151,-165.77420252,0.00016585,2]
[338351550,1726544966172,-300.0,0.00016685,2]
[338351551,1726544966192,-300.0,0.00016685,2]
[338351552,1726544966214,-17536.28975645,0.00016686,2]
[338351553,1726544972337,-5402.81564777,0.00016686,2]
[338351554,1726544972362,-182.6704724,0.00016877,2]
[338351555,1726544972384,-165.77420252,0.00016962,2]
[338351556,1726544972405,-258.54644461,0.00016964,2]
[338351558,1726545010960,138.93299722,0.00016896,2]
[338351661,1726545038924,-111.06700278,0.00016896,2]
[338351662,1726545038934,-300.0,0.00017499,2]
[338351663,1726545038944,-300.0,0.00017499,2]
[338351664,1726545038955,-500.0,0.000175,2]
[338351665,1726545038965,-500.0,0.000175,2]
[338351666,1726545038976,-500.0,0.000175,2]
[338351667,1726545038986,-500.0,0.000175,2]
[338351668,1726545038995,-500.0,0.000175,2]
[338351669,1726545039009,-500.0,0.000175,2]
[338351670,1726545039018,-500.0,0.000175,2]
[338351671,1726545039028,-72.48484322,0.000175,2]
[338351672,1726545039041,-427.51515678,0.000175,2]
[338351673,1726545039051,-500.0,0.000175,2]
[338351674,1726545039066,-500.0,0.000175,2]
[338351675,1726545039076,-500.0,0.000175,2]
[338351676,1726545039086,-292.03195951,0.000175,2]
[338351677,1726545039098,-207.96804049,0.000175,2]
[338351678,1726545039108,-500.0,0.000175,2]
[338351679,1726545039118,-500.0,0.000175,2]
[338351680,1726545039128,-500.0,0.000175,2]
[338351681,1726545039137,-500.0,0.000175,2]
[338351682,1726545039147,-515.25774065,0.000175,2]
[338351683,1726545039157,-1708.1079598,0.00017646,2]
[338351684,1726545039167,-6724.1275495,0.00017673,2]
[338351685,1726545039177,-6724.1275495,0.00018074,2]
[338351686,1726545039187,-5208.3921021,0.00018181,2]
[338351687,1726545039197,-990.7040078,0.00018193,2]
[338351688,1726545039208,-6724.1275495,0.00018273,2]
[338351689,1726545039218,-500.0,0.0001828,2]
[338351690,1726545039228,-500.0,0.0001828,2]
[338351691,1726545039238,-500.0,0.0001828,2]
[338351692,1726545039248,-500.0,0.0001828,2]
[338351693,1726545039257,-500.0,0.0001828,2]
[338351694,1726545039268,-500.0,0.0001828,2]
[338351695,1726545039278,-500.0,0.0001828,2]
[338351696,1726545039288,-526.3567182,0.0001828,2]
[338351697,1726545039299,-500.0,0.0001828,2]
[338351698,1726545039308,-153.73926158,0.0001828,2]
[338351699,1726545039320,-500.0,0.0001828,2]
[338351700,1726545039330,-500.0,0.0001828,2]
[338351701,1726545039340,-500.0,0.0001828,2]
[338351702,1726545039350,-247.82823752,0.0001828,2]
[338351703,1726545039360,-500.0,0.0001828,2]
[338351704,1726545039370,-500.0,0.0001828,2]
[338351705,1726545039379,-224.95546418,0.0001828,2]
[338351706,1726545039390,-500.0,0.0001828,2]
[338351707,1726545039400,-500.0,0.0001828,2]
[338351708,1726545039410,-500.0,0.0001828,2]
[338351709,1726545039420,-500.0,0.0001828,2]
[338351710,1726545039430,-500.0,0.0001828,2]
[338351711,1726545039440,-500.0,0.0001828,2]
[338351712,1726545039449,-500.0,0.0001828,2]
[338351713,1726545039460,-500.0,0.0001828,2]
[338351714,1726545039469,-500.0,0.0001828,2]
[338351715,1726545039479,-500.0,0.0001828,2]
[338351716,1726545039489,-500.0,0.0001828,2]
[338351717,1726545039499,-500.0,0.0001828,2]
[338351718,1726545039509,-500.0,0.0001828,2]
[338351719,1726545039519,-500.0,0.0001828,2]
[338351720,1726545039529,-500.0,0.0001828,2]
[338351721,1726545039538,-500.0,0.0001828,2]
[338351722,1726545039548,-500.0,0.0001828,2]
[338351723,1726545039558,-500.0,0.0001828,2]
[338351724,1726545039568,-500.0,0.0001828,2]
[338351725,1726545039821,-400.00000001,0.0001828,2]
[338351726,1726545039851,-500.0,0.0001828,2]
[338351727,1726545039861,-500.0,0.0001828,2]
[338351728,1726545039871,-500.0,0.0001828,2]
[338351729,1726545039881,-500.0,0.0001828,2]
[338351730,1726545039892,-500.0,0.0001828,2]
[338351731,1726545039902,-500.0,0.0001828,2]
[338351732,1726545039912,-500.0,0.0001828,2]
[338351733,1726545039922,-500.0,0.0001828,2]
[338351734,1726545039934,-500.0,0.0001828,2]
[338351735,1726545039943,-500.0,0.0001828,2]
[338351736,1726545039952,-500.0,0.0001828,2]
[338351737,1726545039963,-500.0,0.0001828,2]
[338351738,1726545039977,-500.0,0.0001828,2]
[338351739,1726545039987,-500.0,0.0001828,2]
[338351740,1726545039997,-500.0,0.0001828,2]
[338351741,1726545040006,-500.0,0.0001828,2]
[338351742,1726545040016,-500.0,0.0001828,2]
[338351743,1726545040026,-500.0,0.0001828,2]
[338351744,1726545040036,-500.0,0.0001828,2]
[338351745,1726545040046,-500.0,0.0001828,2]
[338351746,1726545040057,-500.0,0.0001828,2]
[338351747,1726545040067,-500.0,0.0001828,2]
[338351748,1726545040078,-500.0,0.0001828,2]
[338351749,1726545040088,-500.0,0.0001828,2]
[338351750,1726545040097,-144546.272702,0.00018281,2]
[338351751,1726545040108,-27923.4797785,0.00018281,2]
[338351752,1726545040117,-468.93895975,0.00018282,2]
[338351753,1726545040128,-500.0,0.00018282,2]
[338351754,1726545040137,-500.0,0.00018282,2]
[338351755,1726545040147,-500.0,0.00018282,2]
[338351756,1726545040157,-500.0,0.00018282,2]
[338351757,1726545040166,-500.0,0.00018282,2]
[338351758,1726545040176,-500.0,0.00018282,2]
[338351759,1726545040186,-463.88776442,0.00018282,2]
[338351760,1726545040195,-500.0,0.00018282,2]
[338351761,1726545040204,-500.0,0.00018282,2]
[338351762,1726545040214,-647.3783711,0.00018282,2]
[338351763,1726545040224,-500.0,0.00018282,2]
[338351764,1726545040234,-500.0,0.00018282,2]
[338351765,1726545040246,-500.0,0.00018282,2]
[338351766,1726545040255,-500.0,0.00018282,2]
[338351767,1726545040264,-500.0,0.00018282,2]
[338351768,1726545040276,-260.55372181,0.00018282,2]
[338351769,1726545040285,-300.0,0.00018282,2]
[338351770,1726545040295,-500.0,0.00018282,2]
[338351771,1726545040305,-500.0,0.00018282,2]
[338351772,1726545040315,-500.0,0.00018282,2]
[338351773,1726545040325,-500.0,0.00018282,2]
[338351775,1726545040335,-500.0,0.00018282,2]
[338351777,1726545040345,-72273.1363509,0.00018283,2]
[338351779,1726545040354,-13961.7398892,0.00018283,2]
[338351781,1726545040365,-7591.18162658,0.00018305,2]
[338351782,1726545040375,-204.96739867,0.00018307,2]
[338351783,1726545040384,-1076.2064252,0.00018335,2]
[338351784,1726545040395,-157.43873844,0.00018374,2]
[338351785,1726545040404,-72273.1363509,0.00018374,2]
[338351786,1726545040414,-13961.7398892,0.00018374,2]
[338351787,1726545040424,-999.40257335,0.00018404,2]
[338351788,1726545040434,-990.70400778,0.00018426,2]
[338351790,1726545040444,-6724.1275495,0.0001862,2]
[338351792,1726545040453,-990.70400778,0.00018658,2]
[338351793,1726545040462,-2567.9045819,0.0001869,2]
[338351795,1726545040472,-226.208864,0.000187,2]
[338351796,1726545040482,-819.44016,0.0001878,2]
[338351797,1726545040491,-819.44016,0.0001878,2]
[338351798,1726545040501,-2904.060664,0.0001878,2]
[338351799,1726545040511,-2904.060664,0.0001878,2]
[338351800,1726545040521,-158.220405,0.0001878,2]
[338351801,1726545040531,-72273.1363509,0.0001878,2]
[338351802,1726545040541,-13961.7398892,0.0001878,2]
[338351804,1726545040551,-151.0,0.0001879,2]
[338351806,1726545040560,-151.0,0.0001879,2]
[338351807,1726545040571,-151.0,0.0001879,2]
[338351808,1726545040581,-151.0,0.0001879,2]
[338351810,1726545040590,-151.0,0.0001879,2]
[338351812,1726545040600,-151.0,0.0001879,2]
[338351814,1726545040610,-246.603779,0.0001879,2]
[338351815,1726545040619,-279.253674,0.0001879,2]
[338351816,1726545040629,-279.253674,0.0001879,2]
[338351817,1726545040638,-173.647869,0.0001879,2]
[338351818,1726545040648,-173.647869,0.0001879,2]
[338351819,1726545040658,-1039.563439,0.0001879,2]
[338351820,1726545040668,-1039.563439,0.0001879,2]
[338351821,1726545040678,-151.0,0.0001879,2]
[338351822,1726545040687,-776.12065,0.0001879,2]
[338351823,1726545040697,-151.0,0.0001879,2]
[338351824,1726545040707,-776.12065,0.0001879,2]
[338351825,1726545040717,-524.852005,0.0001879,2]
[338351826,1726545040727,-524.852005,0.0001879,2]
[338351827,1726545040737,-917.23697,0.0001879,2]
[338351828,1726545040747,-917.23697,0.0001879,2]
[338351829,1726545040757,-791.536608,0.0001879,2]
[338351830,1726545040766,-791.536608,0.0001879,2]
[338351831,1726545040776,-150.112233,0.000188,2]
[338351832,1726545040786,-150.112233,0.000188,2]
[338351833,1726545040796,-3000.0,0.000188,2]
[338351834,1726545040806,-3000.0,0.0001881,2]
[338351835,1726545040815,-3000.0,0.0001882,2]
[338351836,1726545040824,-3000.0,0.0001883,2]
[338351837,1726545040834,-1076.2064252,0.00018835,2]
[338351838,1726545040843,-3000.0,0.0001884,2]
[338351839,1726545040852,-3000.0,0.0001885,2]
[338351840,1726545040861,-3000.0,0.0001886,2]
[338351841,1726545040870,-2466.23348057,0.0001886,5]
[338351842,1726545040880,-13961.7398892,0.0001886,3]
[338351843,1726545040889,-150.78554986,0.00018866,2]
[338351844,1726545040899,-3000.0,0.0001887,2]
[338351845,1726545040908,-3000.0,0.0001888,2]
[338351846,1726545040918,-3000.0,0.0001889,2]
[338351847,1726545040928,-6724.1275495,0.0001889,2]
[338351848,1726545040937,-990.70400778,0.00018891,2]
[338351849,1726545040946,-150.112233,0.000189,2]
[338351850,1726545040956,-3000.0,0.000189,2]
[338351851,1726545040966,-3000.0,0.0001891,2]
[338351852,1726545040975,-3000.0,0.0001892,2]
[338351853,1726545040986,-3000.0,0.0001893,2]
[338351854,1726545040996,-3000.0,0.0001894,2]
[338351855,1726545041005,-3000.0,0.0001895,2]
[338351856,1726545041015,-3000.0,0.0001896,2]
[338351857,1726545041024,-3000.0,0.0001897,2]
[338351858,1726545041034,-3000.0,0.0001898,2]
[338351859,1726545041043,-1002.73351535,0.00018989,2]
[338351860,1726545041054,-3000.0,0.0001899,2]
[338351861,1726545041064,-13961.7398892,0.0001899,3]
[338351862,1726545041074,-819.44016,0.0001899,2]
[338351863,1726545041084,-819.44016,0.0001899,2]
[338351864,1726545041093,-2904.060664,0.0001899,2]
[338351865,1726545041104,-2904.060664,0.0001899,2]
[338351866,1726545041114,-158.220405,0.0001899,2]
[338351867,1726545041123,-13961.7398892,0.0001899,3]
[338351868,1726545041134,-150.112233,0.00019,2]
[338351869,1726545041144,-3000.0,0.00019,2]
[338351870,1726545041156,-196.974998,0.00019,2]
[338351871,1726545041168,-4000.0,0.00019,2]
[338351872,1726545041177,-4000.0,0.00019,2]
[338351873,1726545041188,-4000.0,0.00019,2]
[338351874,1726545041198,-4000.0,0.00019,2]
[338351875,1726545041208,-4000.0,0.00019,2]
[338351876,1726545041217,-4000.0,0.00019,2]
[338351877,1726545041228,-4000.0,0.00019,2]
[338351878,1726545041237,-859.278963,0.00019,2]
[338351879,1726545041247,-151.0,0.00019,2]
[338351880,1726545041257,-153.565439,0.00019,2]
[338351881,1726545041267,-151.0,0.00019,2]
[338351882,1726545041276,-151.0,0.00019,2]
[338351883,1726545041285,-151.0,0.00019,2]
[338351884,1726545041295,-279.253674,0.00019,2]
[338351885,1726545041305,-279.253674,0.00019,2]
[338351886,1726545041315,-173.647869,0.00019,2]
[338351887,1726545041325,-173.647869,0.00019,2]
[338351888,1726545041335,-1039.563439,0.00019,2]
[338351889,1726545041345,-1039.563439,0.00019,2]
[338351890,1726545041356,-151.0,0.00019,2]
[338351891,1726545041365,-776.12065,0.00019,2]
[338351892,1726545041375,-151.0,0.00019,2]
[338351893,1726545041384,-776.12065,0.00019,2]
[338351894,1726545041394,-524.852005,0.00019,2]
[338351895,1726545041404,-524.852005,0.00019,2]
[338351896,1726545041415,-917.23697,0.00019,2]
[338351897,1726545041425,-917.23697,0.00019,2]
[338351898,1726545041435,-791.536608,0.00019,2]
[338351899,1726545041444,-791.536608,0.00019,2]
[338351900,1726545041454,-332.852387,0.0001901,2]
[338351901,1726545041463,-332.852387,0.0001901,2]
[338351902,1726545041473,-1945.438801,0.0001901,2]
[338351903,1726545041483,-685.082497,0.0001901,2]
[338351904,1726545041492,-151.0,0.0001901,2]
[338351905,1726545041502,-685.082497,0.0001901,2]
[338351906,1726545041510,-151.0,0.0001901,2]
[338351907,1726545041520,-151.0,0.0001901,2]
[338351908,1726545041531,-151.0,0.0001901,2]
[338351909,1726545041540,-1075.205265,0.0001901,2]
[338351910,1726545041550,-1075.205265,0.0001901,2]
[338351911,1726545041559,-151.0,0.0001901,2]
[338351912,1726545041569,-151.0,0.0001901,2]
[338351913,1726545041604,-151.0,0.0001901,2]
[338351914,1726545041613,-151.0,0.0001901,2]
[338351915,1726545041622,-151.0,0.0001901,2]
[338351916,1726545041632,-151.0,0.0001901,2]
[338351917,1726545041641,-151.0,0.0001901,2]
[338351918,1726545041651,-3000.0,0.0001901,2]
[338351919,1726545041661,-151.0,0.0001901,2]
[338351920,1726545041671,-152.765858,0.0001901,2]
[338351921,1726545041681,-151.0,0.0001901,2]
[338351922,1726545041691,-151.0,0.0001901,2]
[338351923,1726545041701,-2416.18015,0.0001901,2]
[338351924,1726545041710,-2416.18015,0.0001901,2]
[338351925,1726545041720,-1903.03768,0.0001901,2]
[338351926,1726545041731,-1903.03768,0.0001901,2]
[338351927,1726545041741,-1415.185085,0.0001901,2]
[338351928,1726545041750,-1415.185085,0.0001901,2]
[338351929,1726545041760,-400.49115,0.0001901,2]
[338351930,1726545041769,-400.49115,0.0001901,2]
[338351931,1726545041779,-3000.0,0.0001902,2]
[338351932,1726545041788,-3000.0,0.0001903,2]
[338351933,1726545041798,-3000.0,0.0001904,2]
[338351934,1726545041808,-291.16470463,0.00019041,2]
[338351935,1726545041818,-211.4410355,0.00019041,2]
[338351936,1726545041827,-3000.0,0.0001905,2]
[338351937,1726545041837,-13961.7398892,0.0001905,3]
[338351938,1726545041846,-3000.0,0.0001906,2]
[338351939,1726545041856,-6724.1275499,0.00019063,2]
[338351940,1726545041867,-3000.0,0.0001907,2]
[338351941,1726545041876,-3000.0,0.0001908,2]
[338351942,1726545041886,-3000.0,0.0001909,2]
[338351943,1726545041895,-150.112233,0.000191,2]
[338351944,1726545041904,-150.112233,0.000191,2]
[338351945,1726545041914,-150.112233,0.000191,2]
[338351946,1726545041924,-150.112233,0.000191,2]
[338351947,1726545041933,-150.112233,0.000191,2]
[338351948,1726545041943,-3000.0,0.000191,2]
[338351949,1726545041952,-420.0,0.00019103,2]
[338351950,1726545041962,-3000.0,0.0001911,2]
[338351951,1726545041972,-3000.0,0.0001912,2]
[338351952,1726545041982,-990.70400778,0.00019123,2]
[338351953,1726545041991,-291.16470463,0.00019123,2]
[338351954,1726545042001,-211.4410355,0.00019123,2]
[338351955,1726545042011,-3000.0,0.0001913,2]
[338351956,1726545042020,-3000.0,0.0001914,2]
[338351957,1726545042030,-187.0,0.0001914,2]
[338351958,1726545042039,-3000.0,0.0001915,2]
[338351959,1726545042049,-3000.0,0.0001916,2]
[338351960,1726545042063,-819.44016,0.0001916,2]
[338351961,1726545042073,-819.44016,0.0001916,2]
[338351962,1726545042082,-2904.060664,0.0001916,2]
[338351963,1726545042093,-2904.060664,0.0001916,2]
[338351964,1726545042102,-3000.0,0.0001917,2]
[338351965,1726545042113,-161.762938,0.00019178,2]
[338351966,1726545042124,-163.59521,0.00019178,2]
[338351967,1726545042133,-3430.149289,0.00019178,2]
[338351968,1726545042143,-3000.0,0.0001918,2]
[338351969,1726545042153,-1000.0,0.00019181,2]
[338351970,1726545042163,-3000.0,0.0001919,2]
[338351971,1726545042173,-13961.7398892,0.0001919,3]
[338351972,1726545042183,-150.112233,0.000192,2]
[338351973,1726545042193,-150.112233,0.000192,2]
[338351974,1726545042203,-150.112233,0.000192,2]
[338351975,1726545042213,-150.112233,0.000192,2]
[338351976,1726545042223,-150.112233,0.000192,2]
[338351977,1726545042234,-3573.131914,0.000192,2]
[338351978,1726545042243,-600.0,0.000192,2]
[338351979,1726545042254,-151.0,0.00019213,2]
[338351980,1726545042264,-151.0,0.00019213,2]
[338351981,1726545042274,-151.0,0.00019213,2]
[338351982,1726545042283,-279.253674,0.00019213,2]
[338351983,1726545042292,-279.253674,0.00019213,2]
[338351984,1726545042302,-173.647869,0.00019213,2]
[338351985,1726545042312,-173.647869,0.00019213,2]
[338351986,1726545042322,-1039.563439,0.00019213,2]
[338351987,1726545042332,-1039.563439,0.00019213,2]
[338351988,1726545042342,-151.0,0.00019213,2]
[338351989,1726545042351,-776.12065,0.00019213,2]
[338351990,1726545042362,-151.0,0.00019213,2]
[338351991,1726545042372,-776.12065,0.00019213,2]
[338351992,1726545042382,-524.852005,0.00019213,2]
[338351993,1726545042393,-524.852005,0.00019213,2]
[338351994,1726545042403,-917.23697,0.00019213,2]
[338351995,1726545042412,-917.23697,0.00019213,2]
[338351996,1726545042422,-791.536608,0.00019213,2]
[338351997,1726545042431,-791.536608,0.00019213,2]
[338351998,1726545042441,-13961.7398892,0.00019213,3]
[338351999,1726545042451,-332.852387,0.00019223,2]
[338352000,1726545042461,-332.852387,0.00019223,2]
[338352001,1726545042470,-1945.438801,0.00019223,2]
[338352002,1726545042481,-685.082497,0.00019223,2]
[338352003,1726545042492,-151.0,0.00019223,2]
[338352004,1726545042501,-685.082497,0.00019223,2]
[338352005,1726545042511,-151.0,0.00019223,2]
[338352006,1726545042521,-151.0,0.00019223,2]
[338352007,1726545042530,-151.0,0.00019223,2]
[338352008,1726545042540,-1075.205265,0.00019223,2]
[338352009,1726545042549,-1075.205265,0.00019223,2]
[338352010,1726545042559,-151.0,0.00019223,2]
[338352011,1726545042568,-151.0,0.00019223,2]
[338352012,1726545042578,-151.0,0.00019223,2]
[338352013,1726545042588,-151.0,0.00019223,2]
[338352014,1726545042598,-151.0,0.00019223,2]
[338352015,1726545042608,-151.0,0.00019223,2]
[338352016,1726545042618,-285.314537,0.00019223,2]
[338352017,1726545042628,-151.0,0.00019223,2]
[338352018,1726545042638,-151.0,0.00019223,2]
[338352019,1726545042649,-151.0,0.00019223,2]
[338352020,1726545042659,-2416.18015,0.00019223,2]
[338352021,1726545042668,-2416.18015,0.00019223,2]
[338352022,1726545042677,-1903.03768,0.00019223,2]
[338352023,1726545042687,-1903.03768,0.00019223,2]
[338352024,1726545042696,-1415.185085,0.00019223,2]
[338352025,1726545042706,-1415.185085,0.00019223,2]
[338352026,1726545042716,-400.49115,0.00019223,2]
[338352027,1726545042725,-400.49115,0.00019223,2]
[338352028,1726545042735,-291.16470463,0.00019233,2]
[338352029,1726545042745,-211.4410355,0.00019233,2]
[338352030,1726545042909,-13961.7398892,0.00019246,3]
[338352031,1726545042920,-420.0,0.00019249,2]
[338352032,1726545042930,-13961.7398892,0.00019256,3]
[338352033,1726545042940,-8191.10401315,0.0001926,5]
[338352034,1726545042950,-13961.7398892,0.0001926,3]
[338352035,1726545042960,-13961.7398892,0.0001926,3]
[338352036,1726545042970,-819.44016,0.00019261,2]
[338352037,1726545042980,-819.44016,0.00019261,2]
[338352038,1726545042989,-2904.060664,0.00019261,2]
[338352039,1726545042999,-2904.060664,0.00019261,2]
[338352040,1726545043008,-66855.00121692,0.00019266,2]
[338352041,1726545043018,-151.0,0.00019266,2]
[338352042,1726545043028,-151.0,0.00019266,2]
[338352043,1726545043037,-151.0,0.00019266,2]
[338352044,1726545043047,-279.253674,0.00019266,2]
[338352045,1726545043058,-279.253674,0.00019266,2]
[338352046,1726545043069,-173.647869,0.00019266,2]
[338352047,1726545043078,-173.647869,0.00019266,2]
[338352048,1726545043088,-1039.563439,0.00019266,2]
[338352049,1726545043099,-1039.563439,0.00019266,2]
[338352050,1726545043108,-151.0,0.00019266,2]
[338352051,1726545043119,-776.12065,0.00019266,2]
[338352052,1726545043129,-151.0,0.00019266,2]
[338352053,1726545043138,-776.12065,0.00019266,2]
[338352054,1726545043148,-524.852005,0.00019266,2]
[338352055,1726545043158,-524.852005,0.00019266,2]
[338352056,1726545043168,-917.23697,0.00019266,2]
[338352057,1726545043177,-917.23697,0.00019266,2]
[338352058,1726545043188,-791.536608,0.00019266,2]
[338352059,1726545043198,-791.536608,0.00019266,2]
[338352061,1726545043207,-332.852387,0.0001927,2]
[338352062,1726545043217,-332.852387,0.0001927,2]
[338352064,1726545043226,-1945.438801,0.0001927,2]
[338352066,1726545043235,-685.082497,0.0001927,2]
[338352068,1726545043245,-151.0,0.0001927,2]
[338352070,1726545043255,-685.082497,0.0001927,2]
[338352071,1726545043264,-151.0,0.0001927,2]
[338352072,1726545043275,-151.0,0.0001927,2]
[338352073,1726545043285,-151.0,0.0001927,2]
[338352074,1726545043294,-1075.205265,0.0001927,2]
[338352075,1726545043304,-1075.205265,0.0001927,2]
[338352076,1726545043315,-300.896589,0.0001927,2]
[338352077,1726545043325,-151.0,0.0001927,2]
[338352078,1726545043335,-151.0,0.0001927,2]
[338352079,1726545043345,-151.0,0.0001927,2]
[338352080,1726545043355,-151.0,0.0001927,2]
[338352081,1726545043365,-151.0,0.0001927,2]
[338352082,1726545043375,-151.0,0.0001927,2]
[338352083,1726545043384,-250.133637,0.0001927,2]
[338352084,1726545043394,-151.0,0.0001927,2]
[338352085,1726545043404,-2416.18015,0.0001927,2]
[338352086,1726545043414,-2416.18015,0.0001927,2]
[338352087,1726545043424,-1903.03768,0.0001927,2]
[338352088,1726545043434,-1903.03768,0.0001927,2]
[338352089,1726545043443,-1415.185085,0.0001927,2]
[338352090,1726545043452,-1415.185085,0.0001927,2]
[338352091,1726545043462,-1395.60675584,0.0001927,3]
[338352092,1726545043848,-158.220405,0.0001916,2]
[338352093,1726545043857,-158.220405,0.00019261,2]
[338352094,1726545043866,-12566.13313336,0.0001927,3]
[338352095,1726545043876,-400.49115,0.0001927,2]
[338352096,1726545043885,-400.49115,0.0001927,2]
[338352097,1726545043895,-819.44016,0.0001927,2]
[338352098,1726545043904,-819.44016,0.0001927,2]
[338352099,1726545043913,-2904.060664,0.0001927,2]
[338352100,1726545043923,-2904.060664,0.0001927,2]
[338352101,1726545043932,-158.220405,0.0001927,2]
[338352102,1726545043941,-13961.7398892,0.0001927,3]
[338352103,1726545043951,-756.779,0.00019271,2]
[338352104,1726545043959,-500.0,0.00019273,2]
[338352105,1726545043970,-500.0,0.00019273,2]
[338352106,1726545043981,-500.0,0.00019273,2]
[338352107,1726545043990,-500.0,0.00019273,2]